{"text_format":"1","workbook":"xlsx","n_sheets":1,"sheets":["PCOIandTCGworksheet"],"not_rendered":{"charts":0,"images":6,"macros":1,"external_links":0,"defined_names":6,"comments":0,"pivot_tables":0},"unopened":[],"bounds":{"document_bytes":16777216,"sheet_cells":100000,"rows_first":2000,"rows_last":500,"rows_between":2000,"halvings":0,"cell_chars":16384,"cell_head_chars":4096},"cells_cut":0,"cells_raw":0,"read":"whole","date_system":"1900"}

{"sheet":"PCOIandTCGworksheet","index":0,"n_rows":401,"n_cols":26,"rows_kept":401,"cut":false,"hidden":false,"merged":[[66,3,66,8],[66,0,66,2],[52,2,52,10],[52,0,52,1],[53,0,53,1],[53,2,53,10],[0,6,1,13],[6,0,6,1],[7,0,7,1],[7,2,7,7],[6,2,6,7],[7,10,7,13],[8,0,8,1],[8,2,8,7],[11,16,11,28],[19,19,19,20],[19,21,19,22],[19,2,19,6],[15,4,17,7],[10,2,10,3],[19,9,19,14],[9,0,9,1],[9,2,9,3],[9,5,9,7],[67,3,67,8],[54,0,54,1],[54,2,54,10],[58,0,58,9],[20,1,23,1],[20,0,23,0],[25,0,28,0],[25,1,28,1],[30,0,33,0],[30,1,33,1],[35,0,38,0],[35,1,38,1],[20,9,41,14],[48,6,48,12],[47,0,47,3],[48,0,48,3],[62,0,64,14],[40,0,41,4],[47,6,47,12],[46,13,46,14],[46,6,46,12],[45,6,45,14],[46,0,46,3],[40,5,41,5],[40,6,41,6]]}
[null,"ODOT ENGINEERING AND TECHNICAL SERVICES BRANCH",null,null,null,null,"PCOI and TCG Calculation Worksheet"]
[null,"Traffic Engineering Section",null,null,null,null,null,null,null,null,null,null,null,null,null,null,null,null,null,null,null,null,null,null,null,"PCOI Decision Matrix"]
[null,"Phone: (503) 986-3568"]
[null,"E-mail: Chris.J.PRIMM@odot.oregon.gov  "]
["General Information:"]
[]
["Project Name:",null,""]
["Main St. Name:",null,"",null,null,null,null,null,null,"ODOT Hwy No.:","--Select--"]
["Side St. Name:",null,"",null,null,null,null,null,null,"M.P.:",""]
["City:",null,"--Select--",null,"County:","--Select--",null,null,null,null,""]
[null,"Rail USDOT No.:",""]
[null,null,null,null,null,null,null,null,null,null,null,null,null,null,null,null," "]
["Intersection Information:"]
[]
[null,"Existing PCOI Time:",null,"sec.",null,null,null,null,null,"Yellow/red time (buffer):",null,3,"sec."]
[null,"Verification Method:","--Select--",null,"Note: \"rail controller\" is most accurate/preferred verification method. Contact ODOT CCD.",null,null,null,null,"default 3 sec. (reduce to 0 sec. for the most conservative FDW times)"]
[null,"Date Verified:"]
[null,"Verifed By:",null,null,null,null,null,null,null,"Walking speed:",null,3.5,"ft./sec."]
[null,null,null,null,null,null,null,null,null,"default 3.5 as per MUTCD recommendation"]
["FDW time calc (PROWAG) in sec.","FDW time calc (MUTCD) in sec.","Ped Phase Measurements\n(if more than 4 ped phases, input data for the 4 longest D1 values. If less than 4 ped phases leave extras blank. If no PBs are present for a ped phase, input \"n/a\") ",null,null,null,null,null,null,"Insert plan view or google view of intersection \nInclude north arrow",null,null,null,null,null,null,null,null,null,"prowag calcs",null,"alt Min calcs"]
[{"$f":"U23","v":-3},{"$f":"W23","v":-3},"Crosswalk 1 length (D1)",null,null,null,"ft.",null,null,null,null,null,null,null,null,null,null,"crosswalk 1:","max PB",{"$f":"MAX(F23:F24)","v":0},null,"n/a"]
[null,null,null,null,null,null,null,null,null,null,null,null,null,null,null,null,null,null,"total distance",{"$f":"T21+F21","v":0},null,{"$f":"F21","v":0}]
[null,null,"crosswalk 1 PB to curb (D2)",null,null,null,"ft.","default 10 ft",null,null,null,null,null,null,null,null,null,null,"FDW time",null,{"$f":"ROUNDUP(((T22/$L$18)-(L15)),0)","v":-3},null,{"$f":"ROUNDUP(((V22/$L$18)-(L15)),0)","v":-3}]
[null,null,"crosswalk 1 PB to curb (D2)",null,null,null,"ft.","default 10 ft"]
[]
[{"$f":"U28","v":-3},{"$f":"W28","v":-3},"Crosswalk 2 length (D1)",null,null,null,"ft.",null,null,null,null,null,null,null,null,null,null,"crosswalk 2:","max PB",{"$f":"MAX(F28:F29)","v":0},null,"n/a"]
[null,null,null,null,null,null,null,null,null,null,null,null,null,null,null,null,null,null,"total distance",{"$f":"F26+T26","v":0},null,{"$f":"F26","v":0}]
[null,null,"crosswalk 2 PB to curb (D2)",null,null,null,"ft.","default 10 ft",null,null,null,null,null,null,null,null,null,null,"FDW time",null,{"$f":"ROUNDUP(((T27/$L$18)-(L15)),0)","v":-3},null,{"$f":"ROUNDUP(((V27/$L$18)-(L15)),0)","v":-3}]
[null,null,"crosswalk 2 PB to curb (D2)",null,null,null,"ft.","default 10 ft"]
[]
[{"$f":"U33","v":-3},{"$f":"W33","v":-3},"Crosswalk 3 length (D1)",null,null,null,"ft.",null,null,null,null,null,null,null,null,null,null,"crosswalk 3:","max PB",{"$f":"MAX(F33:F34)","v":0},null,"n/a"]
[null,null,null,null,null,null,null,null,null,null,null,null,null,null,null,null,null,null,"total distance",{"$f":"F31+T31","v":0},null,{"$f":"F31","v":0}]
[null,null,"crosswalk 3 PB to curb (D2)",null,null,null,"ft.","default 10 ft",null,null,null,null,null,null,null,null,null,null,"FDW time",null,{"$f":"ROUNDUP(((T32/$L$18)-(L15)),0)","v":-3},null,{"$f":"ROUNDUP(((V32/$L$18)-(L15)),0)","v":-3}]
[null,null,"crosswalk 3 PB to curb (D2)",null,null,null,"ft.","default 10 ft"]
[]
[{"$f":"U38","v":-3},{"$f":"W38","v":-3},"Crosswalk 4 length (D1)",null,null,null,"ft.",null,null,null,null,null,null,null,null,null,null,"crosswalk 4:","max PB",{"$f":"MAX(F38:F39)","v":0},null,"n/a"]
[null,null,null,null,null,null,null,null,null,null,null,null,null,null,null,null,null,null,"total distance",{"$f":"F36+T36","v":0},null,{"$f":"F36","v":0}]
[null,null,"crosswalk 4 PB to curb (D2)",null,null,null,"ft.","default 10 ft",null,null,null,null,null,null,null,null,null,null,"FDW time",null,{"$f":"ROUNDUP(((T37/$L$18)-(L15)),0)","v":-3},null,{"$f":"ROUNDUP(((V37/$L$18)-(L15)),0)","v":-3}]
[null,null,"crosswalk 4 PB to curb (D2)",null,null,null,"ft.","default 10 ft"]
[]
["Distance between the nearest crosswalk bar (or stop bar, if present) at the highway traffic signal and the railroad tracks",null,null,null,null,null,"ft."]
[]
[]
["PCOI Results:",null,null,null,null,null,null,null,null,null,null,null,null,null,null,null,null,null,"Longest FDW (PCOI) time",null,{"$f":"MAX(U23:U42)","v":-3},null,{"$f":"MAX(W23:W42)","v":-3}]
[]
[null,null,null,null,null,null,"Existing PCOI Verification Information"]
["Existing PCOI time:",null,null,null,{"$f":"IF(C15=\"\",\"\",C15)","v":""},{"$f":"IF(OR(C15=\"\",C15=\"n/a\"),\"\",\"sec.\")","v":""},"Is Calculated PCOI time > Existing PCOI time?\nNote: when calculated PCOI time is greater than existing PCOI time, adjustmenets to the railroad equipment are required to provide the additional seconds. Contact ODOT CCD for assistance.",null,null,null,null,null,null,"Additional seconds needed:"]
["PROWAG PCOI time calc: \nRequired for new signals, existing signals without an existing PCOI, and total signal rebuilds\n",null,null,null,{"$f":"U44","v":-3},"sec.",{"$f":"U51","v":""},null,null,null,null,null,null,{"$f":"IF(G48=\"YES\",(E48-$C$15),\"\")","v":""},{"$f":"IF(N48=\"\",\"\",\"sec.\")","v":""}]
["MUTCD PCOI time calc:\nAcceptable for minor work at existing signals with an existing PCOI and when it is not feasible to implement PROWAG PCOI time",null,null,null,{"$f":"W44","v":-3},"sec.",{"$f":"W51","v":""},null,null,null,null,null,null,{"$f":"IF(G49=\"YES\",(E49-$C$15),\"\")","v":""},{"$f":"IF(N49=\"\",\"\",\"sec.\")","v":""},null,null,null,"Existing PCOI verification"]
[]
["PCOI Decision (If this section changes during the design process - correct form, resign/date, and resubmit):",null,null,null,null,null,null,null,null,null,null,null,null,null,null,null,null,null,"calc > existing?",null,{"$f":"IF($C$15=\"n/a\",\"n/a\",IF($C$15=\"\",\"\",IF($C$15>=U44,\"NO\",\"YES\")))","v":""},null,{"$f":"IF($C$15=\"n/a\",\"n/a\",IF($C$15=\"\",\"\",IF($C$15>=W44,\"NO\",\"YES\")))","v":""}]
[]
["Chosen PCOI time:",null,"--Select--",null,null,null,null,null,null,null,null,{"$f":"S65","v":""},{"$f":"IF(OR(C53=\"\",$C$53=$S$58),\"\",\"sec.\")","v":"sec."},null,{"$f":"IF($C$53=$S$58,\"sec.\",\"\")","v":""},null,null,null,"pull down menu"]
["PCOI time trigger:",null,"--Select--",null,null,null,null,null,null,null,null,null,null,null,null,null,null,null,"--Select--"]
["Project Category:",null,"--Select--",null,null,null,null,null,null,null,null,null,null,null,null,null,null,null,"PROWAG PCOI time will be implemented"]
[null,null,null,null,null,null,null,null,null,null,null,null,null,null,null,null,null,null,"MUTCD PCOI time will be implemented (provide reasoning in comments)"]
["TCG Reults (TCG value should be field verfied. A higher TCG value may be desired due to high percentages of heavy vehicles, roadway grade, etc.):",null,null,null,null,null,null,null,null,null,null,null,null,null,null,null,null,null,"Existing PCOI time will be retained (provide reasoning in comments)"]
[null,null,null,null,null,null,null,null,null,null,null,null,null,null,null,null,null,null,"Other value will be implemented (provide reasoning in comments)"]
["In general, the TCG implemented should not be less than 8 seconds or greater than 20 seconds. If the TCG time is calcualted greater than 20 seconds, see Heavy Railroad Preemption Operations Guide for more information.",null,null,null,null,null,null,null,null,null,"TCG time:",{"$f":"IF(F41/10<8,8,ROUNDUP(F41/10,0))","v":8},"sec.",null,null,null,null,null,"N/A - Documentation for planning purposes"]
[null,null,null,null,null,null,null,null,null,null,null,null,null,null,null,null,null,null,"YES"]
["Comments (e.g., Railroad response(s), feasiblity of changing PCOI time, note changes throughout design phase, future project needs, etc.)",null,null,null,null,null,null,null,null,null,null,null,null,null,null,null,null,null,"NO"]
[]
[]
[null,null,null,null,null,null,null,null,null,null,null,null,null,null,null,null,null,null,"PCOI decision pull down to determine PCOI value"]
[null,null,null,null,null,null,null,null,null,null,null,null,null,null,null,null,null,null,{"$f":"IF(C53=\"MUTCD PCOI time will be implemented (provide reasoning in comments)\",E49,IF(C53=\"PROWAG PCOI time will be implemented\",E48,IF(C53=\"Existing PCOI time will be retained (provide reasoning in comments)\",C15,IF(C53=\"Other value will be implemented (provide reasoning in comments\",\"\",\"\"))))","v":""}]
[null,null,null,null,null,null,null,null,null,null,null,null,null,null,null,null,null,null,"--Select--"]
["Reviewed and Approved by:",null,null,null,null,null,null,null,null,null,null,null,null,null,null,null,null,null,"Rail Controller"]
[null,null,null,null,null,null,null,null,null,null,null,null,null,null,null,null,null,null,"Crossing Order"]
["Submit signed form to the ODOT state traffic operations engineer",null,null,null,null,null,null,null,null,null,null,null,null,null,null,null,null,null,"Cabinet Sticker"]
[null,null,null,null,null,null,null,null,null,null,null,null,null,null,null,null,null,null,"Kinetic data (lowest)"]
[]
[]
[]
[null,null,null,null,null,null,null,null,null,null,null,null,null,null,null,null,null,null,"Scope of work that triggers using this form to calculate and verify PCOI pull down: "]
[null,null,null,null,null,null,null,null,null,null,null,null,null,null,null,null,null,null,"--Select--"]
[null,null,null,null,null,null,null,null,null,null,null,null,null,null,null,null,"STIP/Dev",null,"New signal (establishing a PCOI time)"]
[null,null,null,null,null,null,null,null,null,null,null,null,null,null,null,null,"STIP/Dev","chance to verify and address PCOI time as funding could be available and a crossing order like to be requried regardless (even when the scope of work doesn't specifically include making changes to the PCOI) ","Total or partial signal rebuild "]
[null,null,null,null,null,null,null,null,null,null,null,null,null,null,null,null,"M",null,"Adding a type 7 signal head"]
[null,null,null,null,null,null,null,null,null,null,null,null,null,null,null,null,"M","chance to verify","Changing permissive turns to protected turns for the TCG phases"]
[null,null,null,null,null,null,null,null,null,null,null,null,null,null,null,null,"M","chance to verify even is change is obviously won't be greater than existing conditions","Work triggered changes to existing FDW timing (e.g., geometry/ramp changes, user requests, routine signal timing review, etc.)"]
[null,null,null,null,null,null,null,null,null,null,null,null,null,null,null,null,"M","chance to verify","Adding or removing pedestrian phases"]
[null,null,null,null,null,null,null,null,null,null,null,null,null,null,null,null,"project category pull down:",null,"Verification & documentation of existing PCOI time for future project planning/funding prioritization"]
[null,null,null,null,null,null,null,null,null,null,null,null,null,null,null,null,"--Select--",null,"Other"]
[null,null,null,null,null,null,null,null,null,null,null,null,null,null,null,null,"State Force Work (maintence forces)"]
[null,null,null,null,null,null,null,null,null,null,null,null,null,null,null,null,"STIP or planned capitol improvement contract"]
[null,null,null,null,null,null,null,null,null,null,null,null,null,null,null,null,"Project by permit (e.g., developer, local agency)"]
[null,null,null,null,null,null,null,null,null,null,null,null,null,null,null,null,"No defined project"]
[null,null,null,null,null,null,null,null,null,null,null,null,null,null,null,null,"Other"]
[]
[]
[null,null,null,null,null,null,null,null,null,null,null,null,null,null,null,null,"Region","county","city","odot hwy name/no."]
[null,null,null,null,null,null,null,null,null,null,null,null,null,null,null,null,"--Select--","--Select--","--Select--","--Select--"]
[null,null,null,null,null,null,null,null,null,null,null,null,null,null,null,null,1,"Baker County","Adair Village","OFF SYSTEM"]
[null,null,null,null,null,null,null,null,null,null,null,null,null,null,null,null,2,"Benton County","Adams","001  PACIFIC"]
[null,null,null,null,null,null,null,null,null,null,null,null,null,null,null,null,3,"Clackamas County","Adrian","002  COLUMBIA RIVER"]
[null,null,null,null,null,null,null,null,null,null,null,null,null,null,null,null,4,"Clatsop County","Albany","003  OSWEGO"]
[null,null,null,null,null,null,null,null,null,null,null,null,null,null,null,null,5,"Columbia County","Aloha","004  THE DALLES-CALIFORNIA"]
[null,null,null,null,null,null,null,null,null,null,null,null,null,null,null,null,null,"Coos County","Altamont","005  JOHN DAY"]
[null,null,null,null,null,null,null,null,null,null,null,null,null,null,null,null,null,"Crook County","Amity","006  OLD OREGON TRAIL"]
[null,null,null,null,null,null,null,null,null,null,null,null,null,null,null,null,null,"Curry County","Antelope","007  CENTRAL OREGON"]
[null,null,null,null,null,null,null,null,null,null,null,null,null,null,null,null,null,"Deschutes County","Arlington","008  OREGON-WASHINGTON"]
[null,null,null,null,null,null,null,null,null,null,null,null,null,null,null,null,null,"Douglas County","Ashland","009  OREGON COAST"]
[null,null,null,null,null,null,null,null,null,null,null,null,null,null,null,null,null,"Gilliam County","Astoria","010  WALLOWA LAKE"]
[null,null,null,null,null,null,null,null,null,null,null,null,null,null,null,null,null,"Grant County","Athena","011  ENTERPRISE-LEWISTON"]
[null,null,null,null,null,null,null,null,null,null,null,null,null,null,null,null,null,"Harney County","Aumsville","012  BAKER-COPPERFIELD"]
[null,null,null,null,null,null,null,null,null,null,null,null,null,null,null,null,null,"Hood River County","Aurora","014  CROOKED RIVER"]
[null,null,null,null,null,null,null,null,null,null,null,null,null,null,null,null,null,"Jackson County","Baker City","015  MCKENZIE"]
[null,null,null,null,null,null,null,null,null,null,null,null,null,null,null,null,null,"Jefferson County","Bandon","016  SANTIAM"]
[null,null,null,null,null,null,null,null,null,null,null,null,null,null,null,null,null,"Josephine County","Banks","017  MCKENZIE-BEND"]
[null,null,null,null,null,null,null,null,null,null,null,null,null,null,null,null,null,"Klamath County","Barlow","018  WILLAMETTE"]
[null,null,null,null,null,null,null,null,null,null,null,null,null,null,null,null,null,"Lake County","Barview","019  FREMONT"]
[null,null,null,null,null,null,null,null,null,null,null,null,null,null,null,null,null,"Lane County","Bay City","020  KLAMATH FALLS-LAKEVIEW"]
[null,null,null,null,null,null,null,null,null,null,null,null,null,null,null,null,null,"Lincoln County","Beaver","021  GREEN SPRINGS"]
[null,null,null,null,null,null,null,null,null,null,null,null,null,null,null,null,null,"Linn County","Beaverton","022  CRATER LAKE"]
[null,null,null,null,null,null,null,null,null,null,null,null,null,null,null,null,null,"Malheur County","Bend","023  DAIRY-BONANZA"]
[null,null,null,null,null,null,null,null,null,null,null,null,null,null,null,null,null,"Marion County","Biggs Junction","025  REDWOOD"]
[null,null,null,null,null,null,null,null,null,null,null,null,null,null,null,null,null,"Morrow County","Boardman","026  MT. HOOD"]
[null,null,null,null,null,null,null,null,null,null,null,null,null,null,null,null,null,"Multnomah County","Bonanza","027  ALSEA"]
[null,null,null,null,null,null,null,null,null,null,null,null,null,null,null,null,null,"Polk County","Brookings","028  PENDLETON-JOHN DAY"]
[null,null,null,null,null,null,null,null,null,null,null,null,null,null,null,null,null,"Sherman County","Brooks","029  TUALATIN VALLEY"]
[null,null,null,null,null,null,null,null,null,null,null,null,null,null,null,null,null,"Tillamook County","Brownsville","030  WILLAMINA-SALEM"]
[null,null,null,null,null,null,null,null,null,null,null,null,null,null,null,null,null,"Umatilla County","Bunker Hill","031  ALBANY-CORVALLIS"]
[null,null,null,null,null,null,null,null,null,null,null,null,null,null,null,null,null,"Union County","Burns","032  THREE RIVERS"]
[null,null,null,null,null,null,null,null,null,null,null,null,null,null,null,null,null,"Wallowa County","Butte Falls","033  CORVALLIS-NEWPORT"]
[null,null,null,null,null,null,null,null,null,null,null,null,null,null,null,null,null,"Wasco County","Butteville","035  COOS BAY-ROSEBURG"]
[null,null,null,null,null,null,null,null,null,null,null,null,null,null,null,null,null,"Washington County","Canby","036  PENDLETON-COLD SPRINGS"]
[null,null,null,null,null,null,null,null,null,null,null,null,null,null,null,null,null,"Wheeler County","Cannon Beach","037  WILSON RIVER"]
[null,null,null,null,null,null,null,null,null,null,null,null,null,null,null,null,null,"Yamhill County","Canyon City","038  OREGON CAVES"]
[null,null,null,null,null,null,null,null,null,null,null,null,null,null,null,null,null,null,"Canyonville","039  SALMON RIVER"]
[null,null,null,null,null,null,null,null,null,null,null,null,null,null,null,null,null,null,"Cape Meares","040  BEAVERTON-HILLSDALE"]
[null,null,null,null,null,null,null,null,null,null,null,null,null,null,null,null,null,null,"Carlton","041  OCHOCO"]
[null,null,null,null,null,null,null,null,null,null,null,null,null,null,null,null,null,null,"Cascade Locks","042  SHERMAN"]
[null,null,null,null,null,null,null,null,null,null,null,null,null,null,null,null,null,null,"Cave Junction","043  MONMOUTH-INDEPENDENCE"]
[null,null,null,null,null,null,null,null,null,null,null,null,null,null,null,null,null,null,"Cayuse","044  WAPINITIA"]
[null,null,null,null,null,null,null,null,null,null,null,null,null,null,null,null,null,null,"Cedar Hills","045  UMPQUA"]
[null,null,null,null,null,null,null,null,null,null,null,null,null,null,null,null,null,null,"Cedar Mill","046  NECANICUM"]
[null,null,null,null,null,null,null,null,null,null,null,null,null,null,null,null,null,null,"Central Point","047  SUNSET"]
[null,null,null,null,null,null,null,null,null,null,null,null,null,null,null,null,null,null,"Chenoweth","048  JOHN DAY-BURNS"]
[null,null,null,null,null,null,null,null,null,null,null,null,null,null,null,null,null,null,"Chiloquin","049  LAKEVIEW-BURNS"]
[null,null,null,null,null,null,null,null,null,null,null,null,null,null,null,null,null,null,"City of The Dalles","050  KLAMATH FALLS-MALIN"]
[null,null,null,null,null,null,null,null,null,null,null,null,null,null,null,null,null,null,"Clackamas","051  WILSONVILLE-HUBBARD"]
[null,null,null,null,null,null,null,null,null,null,null,null,null,null,null,null,null,null,"Clatskanie","052  HEPPNER"]
[null,null,null,null,null,null,null,null,null,null,null,null,null,null,null,null,null,null,"Cloverdale","053  WARM SPRINGS"]
[null,null,null,null,null,null,null,null,null,null,null,null,null,null,null,null,null,null,"Coburg","054  UMATILLA-STANFIELD"]
[null,null,null,null,null,null,null,null,null,null,null,null,null,null,null,null,null,null,"Columbia City","058  ALBANY-JUNCTION CITY"]
[null,null,null,null,null,null,null,null,null,null,null,null,null,null,null,null,null,null,"Condon","060  ROGUE RIVER"]
[null,null,null,null,null,null,null,null,null,null,null,null,null,null,null,null,null,null,"Coos Bay","061  STADIUM FREEWAY"]
[null,null,null,null,null,null,null,null,null,null,null,null,null,null,null,null,null,null,"Coquille","062  FLORENCE-EUGENE"]
[null,null,null,null,null,null,null,null,null,null,null,null,null,null,null,null,null,null,"Cornelius","063  ROGUE VALLEY"]
[null,null,null,null,null,null,null,null,null,null,null,null,null,null,null,null,null,null,"Corvallis","064  EAST PORTLAND FREEWAY"]
[null,null,null,null,null,null,null,null,null,null,null,null,null,null,null,null,null,null,"Cottage Grove","066  LA GRANDE-BAKER"]
[null,null,null,null,null,null,null,null,null,null,null,null,null,null,null,null,null,null,"Cove","067  PENDLETON"]
[null,null,null,null,null,null,null,null,null,null,null,null,null,null,null,null,null,null,"Creswell","068  CASCADE HWY NORTH"]
[null,null,null,null,null,null,null,null,null,null,null,null,null,null,null,null,null,null,"Culver","069  BELTLINE"]
[null,null,null,null,null,null,null,null,null,null,null,null,null,null,null,null,null,null,"Dallas","070  MCNARY"]
[null,null,null,null,null,null,null,null,null,null,null,null,null,null,null,null,null,null,"Dayton","071  WHITNEY"]
[null,null,null,null,null,null,null,null,null,null,null,null,null,null,null,null,null,null,"Dayville","072  SALEM"]
[null,null,null,null,null,null,null,null,null,null,null,null,null,null,null,null,null,null,"Depoe Bay","075  SUNRISE EXPRESSWAY"]
[null,null,null,null,null,null,null,null,null,null,null,null,null,null,null,null,null,null,"Deschutes River Woods","081  PACIFIC HIGHWAY EAST"]
[null,null,null,null,null,null,null,null,null,null,null,null,null,null,null,null,null,null,"Detroit","091  PACIFIC HIGHWAY WEST"]
[null,null,null,null,null,null,null,null,null,null,null,null,null,null,null,null,null,null,"Donald","092  LOWER COLUMBIA RIVER"]
[null,null,null,null,null,null,null,null,null,null,null,null,null,null,null,null,null,null,"Drain","100  HISTORIC COLUMBIA RIVER"]
[null,null,null,null,null,null,null,null,null,null,null,null,null,null,null,null,null,null,"Dufur","102  NEHALEM"]
[null,null,null,null,null,null,null,null,null,null,null,null,null,null,null,null,null,null,"Dundee","103  FISHHAWK FALLS"]
[null,null,null,null,null,null,null,null,null,null,null,null,null,null,null,null,null,null,"Dunes City","104  FORT STEVENS"]
[null,null,null,null,null,null,null,null,null,null,null,null,null,null,null,null,null,null,"Durham","105  WARRENTON-ASTORIA"]
[null,null,null,null,null,null,null,null,null,null,null,null,null,null,null,null,null,null,"Eagle Point","110  MIST-CLATSKANIE"]
[null,null,null,null,null,null,null,null,null,null,null,null,null,null,null,null,null,null,"Echo","120  SWIFT"]
[null,null,null,null,null,null,null,null,null,null,null,null,null,null,null,null,null,null,"Elgin","123  NORTHEAST PORTLAND"]
[null,null,null,null,null,null,null,null,null,null,null,null,null,null,null,null,null,null,"Elkton","130  LITTLE NESTUCCA"]
[null,null,null,null,null,null,null,null,null,null,null,null,null,null,null,null,null,null,"Enterprise","131  NETARTS"]
[null,null,null,null,null,null,null,null,null,null,null,null,null,null,null,null,null,null,"Eola","138  NORTH UMPQUA"]
[null,null,null,null,null,null,null,null,null,null,null,null,null,null,null,null,null,null,"Estacada","140  HILLSBORO-SILVERTON"]
[null,null,null,null,null,null,null,null,null,null,null,null,null,null,null,null,null,null,"Eugene","141  BEAVERTON-TUALATIN"]
[null,null,null,null,null,null,null,null,null,null,null,null,null,null,null,null,null,null,"Fairview","142  FARMINGTON"]
[null,null,null,null,null,null,null,null,null,null,null,null,null,null,null,null,null,null,"Falls City","143  SCHOLLS"]
[null,null,null,null,null,null,null,null,null,null,null,null,null,null,null,null,null,null,"Florence","144  BEAVERTON-TIGARD"]
[null,null,null,null,null,null,null,null,null,null,null,null,null,null,null,null,null,null,"Forest Grove","150  SALEM-DAYTON"]
[null,null,null,null,null,null,null,null,null,null,null,null,null,null,null,null,null,null,"Fossil","151  YAMHILL-NEWBERG"]
[null,null,null,null,null,null,null,null,null,null,null,null,null,null,null,null,null,null,"Four Corners","153  BELLEVUE-HOPEWELL"]
[null,null,null,null,null,null,null,null,null,null,null,null,null,null,null,null,null,null,"Garden Home-Whitford","154  LAFAYETTE"]
[null,null,null,null,null,null,null,null,null,null,null,null,null,null,null,null,null,null,"Garibaldi","155  AMITY-DAYTON"]
[null,null,null,null,null,null,null,null,null,null,null,null,null,null,null,null,null,null,"Gaston","157  WILLAMINA-SHERIDAN"]
[null,null,null,null,null,null,null,null,null,null,null,null,null,null,null,null,null,null,"Gates","160  CASCADE HWY SOUTH"]
[null,null,null,null,null,null,null,null,null,null,null,null,null,null,null,null,null,null,"Gearhart","161  WOODBURN-ESTACADA"]
[null,null,null,null,null,null,null,null,null,null,null,null,null,null,null,null,null,null,"Gervais","162  NORTH SANTIAM"]
[null,null,null,null,null,null,null,null,null,null,null,null,null,null,null,null,null,null,"Gladstone","163  SILVER CREEK FALLS"]
[null,null,null,null,null,null,null,null,null,null,null,null,null,null,null,null,null,null,"Glendale","164  JEFFERSON"]
[null,null,null,null,null,null,null,null,null,null,null,null,null,null,null,null,null,null,"Glide","171  CLACKAMAS"]
[null,null,null,null,null,null,null,null,null,null,null,null,null,null,null,null,null,null,"Gold Beach","172  EAGLE CREEK-SANDY"]
[null,null,null,null,null,null,null,null,null,null,null,null,null,null,null,null,null,null,"Gold Hill","173  TIMBERLINE"]
[null,null,null,null,null,null,null,null,null,null,null,null,null,null,null,null,null,null,"Gopher Flats","174  CLACKAMAS-BORING"]
[null,null,null,null,null,null,null,null,null,null,null,null,null,null,null,null,null,null,"Grand Ronde","180  EDDYVILLE-BLODGETT"]
[null,null,null,null,null,null,null,null,null,null,null,null,null,null,null,null,null,null,"Granite","181  SILETZ"]
[null,null,null,null,null,null,null,null,null,null,null,null,null,null,null,null,null,null,"Grants Pass","189  DALLAS-RICKREALL"]
[null,null,null,null,null,null,null,null,null,null,null,null,null,null,null,null,null,null,"Grass Valley","191  KINGS VALLEY"]
[null,null,null,null,null,null,null,null,null,null,null,null,null,null,null,null,null,null,"Green","193  INDEPENDENCE"]
[null,null,null,null,null,null,null,null,null,null,null,null,null,null,null,null,null,null,"Greenhorn","194  MONMOUTH"]
[null,null,null,null,null,null,null,null,null,null,null,null,null,null,null,null,null,null,"Gresham","200  TERRITORIAL"]
[null,null,null,null,null,null,null,null,null,null,null,null,null,null,null,null,null,null,"Haines","201  ALSEA-DEADWOOD"]
[null,null,null,null,null,null,null,null,null,null,null,null,null,null,null,null,null,null,"Halfway","210  CORVALLIS-LEBANON"]
[null,null,null,null,null,null,null,null,null,null,null,null,null,null,null,null,null,null,"Halsey","211  ALBANY-LYONS"]
[null,null,null,null,null,null,null,null,null,null,null,null,null,null,null,null,null,null,"Happy Valley","212  HALSEY-SWEET HOME"]
[null,null,null,null,null,null,null,null,null,null,null,null,null,null,null,null,null,null,"Harbeck-Fruitdale","215  CLEAR LAKE-BELKNAP SPRINGS"]
[null,null,null,null,null,null,null,null,null,null,null,null,null,null,null,null,null,null,"Harbor","222  SPRINGFIELD-CRESWELL"]
[null,null,null,null,null,null,null,null,null,null,null,null,null,null,null,null,null,null,"Harrisburg","225  MCVAY"]
[null,null,null,null,null,null,null,null,null,null,null,null,null,null,null,null,null,null,"Hayesville","226  GOSHEN-DIVIDE"]
[null,null,null,null,null,null,null,null,null,null,null,null,null,null,null,null,null,null,"Hebo","227  EUGENE-SPRINGFIELD"]
[null,null,null,null,null,null,null,null,null,null,null,null,null,null,null,null,null,null,"Helix","228  SPRINGFIELD"]
[null,null,null,null,null,null,null,null,null,null,null,null,null,null,null,null,null,null,"Heppner","229  MAPLETON-JUNCTION CITY"]
[null,null,null,null,null,null,null,null,null,null,null,null,null,null,null,null,null,null,"Hermiston","230  TILLER-TRAIL"]
[null,null,null,null,null,null,null,null,null,null,null,null,null,null,null,null,null,null,"Hillsboro","231  ELKTON-SUTHERLIN"]
[null,null,null,null,null,null,null,null,null,null,null,null,null,null,null,null,null,null,"Hines","233  WEST DIAMOND LAKE"]
[null,null,null,null,null,null,null,null,null,null,null,null,null,null,null,null,null,null,"Hood River","240  CAPE ARAGO"]
[null,null,null,null,null,null,null,null,null,null,null,null,null,null,null,null,null,null,"Hubbard","241  COOS RIVER"]
[null,null,null,null,null,null,null,null,null,null,null,null,null,null,null,null,null,null,"Huntington","242  POWERS"]
[null,null,null,null,null,null,null,null,null,null,null,null,null,null,null,null,null,null,"Idanha","244  COQUILLE-BANDON"]
[null,null,null,null,null,null,null,null,null,null,null,null,null,null,null,null,null,null,"Imbler","250  CAPE BLANCO"]
[null,null,null,null,null,null,null,null,null,null,null,null,null,null,null,null,null,null,"Independence","251  PORT ORFORD"]
[null,null,null,null,null,null,null,null,null,null,null,null,null,null,null,null,null,null,"Ione","255  CARPENTERVILLE"]
[null,null,null,null,null,null,null,null,null,null,null,null,null,null,null,null,null,null,"Irrigon","260  ROGUE RIVER LOOP"]
[null,null,null,null,null,null,null,null,null,null,null,null,null,null,null,null,null,null,"Island City","270  LAKE OF THE WOODS"]
[null,null,null,null,null,null,null,null,null,null,null,null,null,null,null,null,null,null,"Jacksonville","271  SAMS VALLEY"]
[null,null,null,null,null,null,null,null,null,null,null,null,null,null,null,null,null,null,"Jefferson","272  JACKSONVILLE"]
[null,null,null,null,null,null,null,null,null,null,null,null,null,null,null,null,null,null,"Jennings Lodge","273  SISKIYOU"]
[null,null,null,null,null,null,null,null,null,null,null,null,null,null,null,null,null,null,"John Day","281  HOOD RIVER"]
[null,null,null,null,null,null,null,null,null,null,null,null,null,null,null,null,null,null,"Johnson City","282  ODELL"]
[null,null,null,null,null,null,null,null,null,null,null,null,null,null,null,null,null,null,"Jordan Valley","290  SHERARS BRIDGE"]
[null,null,null,null,null,null,null,null,null,null,null,null,null,null,null,null,null,null,"Joseph","291  SHANIKO-FOSSIL"]
[null,null,null,null,null,null,null,null,null,null,null,null,null,null,null,null,null,null,"Junction City","292  MOSIER-THE DALLES"]
[null,null,null,null,null,null,null,null,null,null,null,null,null,null,null,null,null,null,"Keizer","293  ANTELOPE"]
[null,null,null,null,null,null,null,null,null,null,null,null,null,null,null,null,null,null,"King City","300  WASCO-HEPPNER"]
[null,null,null,null,null,null,null,null,null,null,null,null,null,null,null,null,null,null,"Kirkpatrick","301  CELILO-WASCO"]
[null,null,null,null,null,null,null,null,null,null,null,null,null,null,null,null,null,null,"Klamath Falls","320  LEXINGTON-ECHO"]
[null,null,null,null,null,null,null,null,null,null,null,null,null,null,null,null,null,null,"Labish Village","321  HEPPNER-SPRAY"]
[null,null,null,null,null,null,null,null,null,null,null,null,null,null,null,null,null,null,"Lafayette","330  WESTON-ELGIN"]
[null,null,null,null,null,null,null,null,null,null,null,null,null,null,null,null,null,null,"La Grande","331  UMATILLA MISSION"]
[null,null,null,null,null,null,null,null,null,null,null,null,null,null,null,null,null,null,"Lake Oswego","332  SUNNYSIDE-UMAPINE"]
[null,null,null,null,null,null,null,null,null,null,null,null,null,null,null,null,null,null,"Lakeside","333  HERMISTON"]
[null,null,null,null,null,null,null,null,null,null,null,null,null,null,null,null,null,null,"Lakeview","334  ATHENA-HOLDMAN"]
[null,null,null,null,null,null,null,null,null,null,null,null,null,null,null,null,null,null,"La Pine","335  HAVANA-HELIX"]
[null,null,null,null,null,null,null,null,null,null,null,null,null,null,null,null,null,null,"Lebanon","339  FREEWATER"]
[null,null,null,null,null,null,null,null,null,null,null,null,null,null,null,null,null,null,"Lexington","340  MEDICAL SPRINGS"]
[null,null,null,null,null,null,null,null,null,null,null,null,null,null,null,null,null,null,"Lincoln Beach","341  UKIAH-HILGARD"]
[null,null,null,null,null,null,null,null,null,null,null,null,null,null,null,null,null,null,"Lincoln City","342  COVE"]
[null,null,null,null,null,null,null,null,null,null,null,null,null,null,null,null,null,null,"Lonerock","350  JOSEPH-WALLOWA LAKE"]
[null,null,null,null,null,null,null,null,null,null,null,null,null,null,null,null,null,null,"Long Creek","350  LITTLE SHEEP CREEK"]
[null,null,null,null,null,null,null,null,null,null,null,null,null,null,null,null,null,null,"Lostine","360  MADRAS-PRINEVILLE"]
[null,null,null,null,null,null,null,null,null,null,null,null,null,null,null,null,null,null,"Lowell","361  CULVER"]
[null,null,null,null,null,null,null,null,null,null,null,null,null,null,null,null,null,null,"Lyons","370  O'NEIL"]
[null,null,null,null,null,null,null,null,null,null,null,null,null,null,null,null,null,null,"McMinnville","372  CENTURY DRIVE"]
[null,null,null,null,null,null,null,null,null,null,null,null,null,null,null,null,null,null,"Madras","380  PAULINA"]
[null,null,null,null,null,null,null,null,null,null,null,null,null,null,null,null,null,null,"Malin","390  SERVICE CREEK-MITCHELL"]
[null,null,null,null,null,null,null,null,null,null,null,null,null,null,null,null,null,null,"Manzanita","402  KIMBERLY-LONG CREEK"]
[null,null,null,null,null,null,null,null,null,null,null,null,null,null,null,null,null,null,"Marion","410  SUMPTER"]
[null,null,null,null,null,null,null,null,null,null,null,null,null,null,null,null,null,null,"Maupin","413  HALFWAY-CORNUCOPIA"]
[null,null,null,null,null,null,null,null,null,null,null,null,null,null,null,null,null,null,"Maywood Park","414  PINE CREEK"]
[null,null,null,null,null,null,null,null,null,null,null,null,null,null,null,null,null,null,"Medford","415  DOOLEY MOUNTAIN"]
[null,null,null,null,null,null,null,null,null,null,null,null,null,null,null,null,null,null,"Mehama","422  CHILOQUIN"]
[null,null,null,null,null,null,null,null,null,null,null,null,null,null,null,null,null,null,"Merrill","424  SOUTH KLAMATH FALLS"]
[null,null,null,null,null,null,null,null,null,null,null,null,null,null,null,null,null,null,"Metolius","426  HATFIELD"]
[null,null,null,null,null,null,null,null,null,null,null,null,null,null,null,null,null,null,"Metzger","429  CRESCENT LAKE"]
[null,null,null,null,null,null,null,null,null,null,null,null,null,null,null,null,null,null,"Mill City","431  WARNER"]
[null,null,null,null,null,null,null,null,null,null,null,null,null,null,null,null,null,null,"Millersburg","440  FRENCHGLEN"]
[null,null,null,null,null,null,null,null,null,null,null,null,null,null,null,null,null,null,"Milton-Freewater","442  STEENS"]
[null,null,null,null,null,null,null,null,null,null,null,null,null,null,null,null,null,null,"Milwaukie","449  HUNTINGTON"]
[null,null,null,null,null,null,null,null,null,null,null,null,null,null,null,null,null,null,"Mission","450  SUCCOR CREEK"]
[null,null,null,null,null,null,null,null,null,null,null,null,null,null,null,null,null,null,"Mitchell","451  VALE-WEST"]
[null,null,null,null,null,null,null,null,null,null,null,null,null,null,null,null,null,null,"Molalla","453  ADRIAN-ARENA VALLEY"]
[null,null,null,null,null,null,null,null,null,null,null,null,null,null,null,null,null,null,"Monmouth","454  ADRIAN-CALDWELL"]
[null,null,null,null,null,null,null,null,null,null,null,null,null,null,null,null,null,null,"Monroe","455  OLDS FERRY-ONTARIO"]
[null,null,null,null,null,null,null,null,null,null,null,null,null,null,null,null,null,null,"Monument","456  I.O.N."]
[null,null,null,null,null,null,null,null,null,null,null,null,null,null,null,null,null,null,"Moro","480  REDMOND SPUR"]
[null,null,null,null,null,null,null,null,null,null,null,null,null,null,null,null,null,null,"Mosier","481  BAKER-COPPERFIELD SPUR"]
[null,null,null,null,null,null,null,null,null,null,null,null,null,null,null,null,null,null,"Mount Angel","483  MCMINNVILLE SPUR"]
[null,null,null,null,null,null,null,null,null,null,null,null,null,null,null,null,null,null,"Mount Hood Village","484  ESPLANADE SPUR"]
[null,null,null,null,null,null,null,null,null,null,null,null,null,null,null,null,null,null,"Mount Vernon","485  FORT STEVENS SPUR"]
[null,null,null,null,null,null,null,null,null,null,null,null,null,null,null,null,null,null,"Myrtle Creek","486  GOLD HILL SPUR"]
[null,null,null,null,null,null,null,null,null,null,null,null,null,null,null,null,null,null,"Myrtle Point","488  CHILOQUIN SPUR"]
[null,null,null,null,null,null,null,null,null,null,null,null,null,null,null,null,null,null,"Nehalem","489  PARMA SPUR"]
[null,null,null,null,null,null,null,null,null,null,null,null,null,null,null,null,null,null,"Neskowin","490  HOMEDALE SPUR"]
[null,null,null,null,null,null,null,null,null,null,null,null,null,null,null,null,null,null,"Netarts","491  WEISER SPUR"]
[null,null,null,null,null,null,null,null,null,null,null,null,null,null,null,null,null,null,"Newberg","492  PAYETTE SPUR"]
[null,null,null,null,null,null,null,null,null,null,null,null,null,null,null,null,null,null,"Newport","493  ONTARIO SPUR"]
[null,null,null,null,null,null,null,null,null,null,null,null,null,null,null,null,null,null,"North Bend"]
[null,null,null,null,null,null,null,null,null,null,null,null,null,null,null,null,null,null,"North Plains"]
[null,null,null,null,null,null,null,null,null,null,null,null,null,null,null,null,null,null,"North Powder"]
[null,null,null,null,null,null,null,null,null,null,null,null,null,null,null,null,null,null,"Nyssa"]
[null,null,null,null,null,null,null,null,null,null,null,null,null,null,null,null,null,null,"Oak Grove"]
[null,null,null,null,null,null,null,null,null,null,null,null,null,null,null,null,null,null,"Oak Hills"]
[null,null,null,null,null,null,null,null,null,null,null,null,null,null,null,null,null,null,"Oakland"]
[null,null,null,null,null,null,null,null,null,null,null,null,null,null,null,null,null,null,"Oakridge"]
[null,null,null,null,null,null,null,null,null,null,null,null,null,null,null,null,null,null,"Oatfield"]
[null,null,null,null,null,null,null,null,null,null,null,null,null,null,null,null,null,null,"Oceanside"]
[null,null,null,null,null,null,null,null,null,null,null,null,null,null,null,null,null,null,"Odell"]
[null,null,null,null,null,null,null,null,null,null,null,null,null,null,null,null,null,null,"Ontario"]
[null,null,null,null,null,null,null,null,null,null,null,null,null,null,null,null,null,null,"Oregon City"]
[null,null,null,null,null,null,null,null,null,null,null,null,null,null,null,null,null,null,"Pacific City"]
[null,null,null,null,null,null,null,null,null,null,null,null,null,null,null,null,null,null,"Paisley"]
[null,null,null,null,null,null,null,null,null,null,null,null,null,null,null,null,null,null,"Parkdale"]
[null,null,null,null,null,null,null,null,null,null,null,null,null,null,null,null,null,null,"Pendleton"]
[null,null,null,null,null,null,null,null,null,null,null,null,null,null,null,null,null,null,"Philomath"]
[null,null,null,null,null,null,null,null,null,null,null,null,null,null,null,null,null,null,"Phoenix"]
[null,null,null,null,null,null,null,null,null,null,null,null,null,null,null,null,null,null,"Pilot Rock"]
[null,null,null,null,null,null,null,null,null,null,null,null,null,null,null,null,null,null,"Pine Grove"]
[null,null,null,null,null,null,null,null,null,null,null,null,null,null,null,null,null,null,"Pine Hollow"]
[null,null,null,null,null,null,null,null,null,null,null,null,null,null,null,null,null,null,"Portland"]
[null,null,null,null,null,null,null,null,null,null,null,null,null,null,null,null,null,null,"Port Orford"]
[null,null,null,null,null,null,null,null,null,null,null,null,null,null,null,null,null,null,"Powers"]
[null,null,null,null,null,null,null,null,null,null,null,null,null,null,null,null,null,null,"Prairie City"]
[null,null,null,null,null,null,null,null,null,null,null,null,null,null,null,null,null,null,"Prescott"]
[null,null,null,null,null,null,null,null,null,null,null,null,null,null,null,null,null,null,"Prineville"]
[null,null,null,null,null,null,null,null,null,null,null,null,null,null,null,null,null,null,"Rainier"]
[null,null,null,null,null,null,null,null,null,null,null,null,null,null,null,null,null,null,"Raleigh Hills"]
[null,null,null,null,null,null,null,null,null,null,null,null,null,null,null,null,null,null,"Redmond"]
[null,null,null,null,null,null,null,null,null,null,null,null,null,null,null,null,null,null,"Redwood"]
[null,null,null,null,null,null,null,null,null,null,null,null,null,null,null,null,null,null,"Reedsport"]
[null,null,null,null,null,null,null,null,null,null,null,null,null,null,null,null,null,null,"Richland"]
[null,null,null,null,null,null,null,null,null,null,null,null,null,null,null,null,null,null,"Rickreall"]
[null,null,null,null,null,null,null,null,null,null,null,null,null,null,null,null,null,null,"Riddle"]
[null,null,null,null,null,null,null,null,null,null,null,null,null,null,null,null,null,null,"Rivergrove"]
[null,null,null,null,null,null,null,null,null,null,null,null,null,null,null,null,null,null,"Riverside"]
[null,null,null,null,null,null,null,null,null,null,null,null,null,null,null,null,null,null,"Rockaway Beach"]
[null,null,null,null,null,null,null,null,null,null,null,null,null,null,null,null,null,null,"Rockcreek"]
[null,null,null,null,null,null,null,null,null,null,null,null,null,null,null,null,null,null,"Rogue River"]
[null,null,null,null,null,null,null,null,null,null,null,null,null,null,null,null,null,null,"Roseburg"]
[null,null,null,null,null,null,null,null,null,null,null,null,null,null,null,null,null,null,"Roseburg North"]
[null,null,null,null,null,null,null,null,null,null,null,null,null,null,null,null,null,null,"Rose Lodge"]
[null,null,null,null,null,null,null,null,null,null,null,null,null,null,null,null,null,null,"Rowena"]
[null,null,null,null,null,null,null,null,null,null,null,null,null,null,null,null,null,null,"Rufus"]
[null,null,null,null,null,null,null,null,null,null,null,null,null,null,null,null,null,null,"St. Helens"]
[null,null,null,null,null,null,null,null,null,null,null,null,null,null,null,null,null,null,"St. Paul"]
[null,null,null,null,null,null,null,null,null,null,null,null,null,null,null,null,null,null,"Salem"]
[null,null,null,null,null,null,null,null,null,null,null,null,null,null,null,null,null,null,"Sandy"]
[null,null,null,null,null,null,null,null,null,null,null,null,null,null,null,null,null,null,"Scappoose"]
[null,null,null,null,null,null,null,null,null,null,null,null,null,null,null,null,null,null,"Scio"]
[null,null,null,null,null,null,null,null,null,null,null,null,null,null,null,null,null,null,"Scotts Mills"]
[null,null,null,null,null,null,null,null,null,null,null,null,null,null,null,null,null,null,"Seaside"]
[null,null,null,null,null,null,null,null,null,null,null,null,null,null,null,null,null,null,"Seneca"]
[null,null,null,null,null,null,null,null,null,null,null,null,null,null,null,null,null,null,"Shady Cove"]
[null,null,null,null,null,null,null,null,null,null,null,null,null,null,null,null,null,null,"Shaniko"]
[null,null,null,null,null,null,null,null,null,null,null,null,null,null,null,null,null,null,"Sheridan"]
[null,null,null,null,null,null,null,null,null,null,null,null,null,null,null,null,null,null,"Sherwood"]
[null,null,null,null,null,null,null,null,null,null,null,null,null,null,null,null,null,null,"Siletz"]
[null,null,null,null,null,null,null,null,null,null,null,null,null,null,null,null,null,null,"Silverton"]
[null,null,null,null,null,null,null,null,null,null,null,null,null,null,null,null,null,null,"Sisters"]
[null,null,null,null,null,null,null,null,null,null,null,null,null,null,null,null,null,null,"Sodaville"]
[null,null,null,null,null,null,null,null,null,null,null,null,null,null,null,null,null,null,"South Lebanon"]
[null,null,null,null,null,null,null,null,null,null,null,null,null,null,null,null,null,null,"Spray"]
[null,null,null,null,null,null,null,null,null,null,null,null,null,null,null,null,null,null,"Springfield"]
[null,null,null,null,null,null,null,null,null,null,null,null,null,null,null,null,null,null,"Stanfield"]
[null,null,null,null,null,null,null,null,null,null,null,null,null,null,null,null,null,null,"Stayton"]
[null,null,null,null,null,null,null,null,null,null,null,null,null,null,null,null,null,null,"Sublimity"]
[null,null,null,null,null,null,null,null,null,null,null,null,null,null,null,null,null,null,"Summerville"]
[null,null,null,null,null,null,null,null,null,null,null,null,null,null,null,null,null,null,"Sumpter"]
[null,null,null,null,null,null,null,null,null,null,null,null,null,null,null,null,null,null,"Sunnyside"]
[null,null,null,null,null,null,null,null,null,null,null,null,null,null,null,null,null,null,"Sutherlin"]
[null,null,null,null,null,null,null,null,null,null,null,null,null,null,null,null,null,null,"Sweet Home"]
[null,null,null,null,null,null,null,null,null,null,null,null,null,null,null,null,null,null,"Talent"]
[null,null,null,null,null,null,null,null,null,null,null,null,null,null,null,null,null,null,"Tangent"]
[null,null,null,null,null,null,null,null,null,null,null,null,null,null,null,null,null,null,"Terrebonne"]
[null,null,null,null,null,null,null,null,null,null,null,null,null,null,null,null,null,null,"Three Rivers"]
[null,null,null,null,null,null,null,null,null,null,null,null,null,null,null,null,null,null,"Tigard"]
[null,null,null,null,null,null,null,null,null,null,null,null,null,null,null,null,null,null,"Tillamook"]
[null,null,null,null,null,null,null,null,null,null,null,null,null,null,null,null,null,null,"Toledo"]
[null,null,null,null,null,null,null,null,null,null,null,null,null,null,null,null,null,null,"Tri-City"]
[null,null,null,null,null,null,null,null,null,null,null,null,null,null,null,null,null,null,"Troutdale"]
[null,null,null,null,null,null,null,null,null,null,null,null,null,null,null,null,null,null,"Tualatin"]
[null,null,null,null,null,null,null,null,null,null,null,null,null,null,null,null,null,null,"Turner"]
[null,null,null,null,null,null,null,null,null,null,null,null,null,null,null,null,null,null,"Tutuilla"]
[null,null,null,null,null,null,null,null,null,null,null,null,null,null,null,null,null,null,"Tygh Valley"]
[null,null,null,null,null,null,null,null,null,null,null,null,null,null,null,null,null,null,"Ukiah"]
[null,null,null,null,null,null,null,null,null,null,null,null,null,null,null,null,null,null,"Umatilla"]
[null,null,null,null,null,null,null,null,null,null,null,null,null,null,null,null,null,null,"Union"]
[null,null,null,null,null,null,null,null,null,null,null,null,null,null,null,null,null,null,"Unity"]
[null,null,null,null,null,null,null,null,null,null,null,null,null,null,null,null,null,null,"Vale"]
[null,null,null,null,null,null,null,null,null,null,null,null,null,null,null,null,null,null,"Veneta"]
[null,null,null,null,null,null,null,null,null,null,null,null,null,null,null,null,null,null,"Vernonia"]
[null,null,null,null,null,null,null,null,null,null,null,null,null,null,null,null,null,null,"Waldport"]
[null,null,null,null,null,null,null,null,null,null,null,null,null,null,null,null,null,null,"Wallowa"]
[null,null,null,null,null,null,null,null,null,null,null,null,null,null,null,null,null,null,"Wamic"]
[null,null,null,null,null,null,null,null,null,null,null,null,null,null,null,null,null,null,"Warm Springs"]
[null,null,null,null,null,null,null,null,null,null,null,null,null,null,null,null,null,null,"Warrenton"]
[null,null,null,null,null,null,null,null,null,null,null,null,null,null,null,null,null,null,"Wasco"]
[null,null,null,null,null,null,null,null,null,null,null,null,null,null,null,null,null,null,"Waterloo"]
[null,null,null,null,null,null,null,null,null,null,null,null,null,null,null,null,null,null,"Westfir"]
[null,null,null,null,null,null,null,null,null,null,null,null,null,null,null,null,null,null,"West Haven-Sylvan"]
[null,null,null,null,null,null,null,null,null,null,null,null,null,null,null,null,null,null,"West Linn"]
[null,null,null,null,null,null,null,null,null,null,null,null,null,null,null,null,null,null,"Weston"]
[null,null,null,null,null,null,null,null,null,null,null,null,null,null,null,null,null,null,"West Slope"]
[null,null,null,null,null,null,null,null,null,null,null,null,null,null,null,null,null,null,"Wheeler"]
[null,null,null,null,null,null,null,null,null,null,null,null,null,null,null,null,null,null,"White City"]
[null,null,null,null,null,null,null,null,null,null,null,null,null,null,null,null,null,null,"Willamina"]
[null,null,null,null,null,null,null,null,null,null,null,null,null,null,null,null,null,null,"Wilsonville"]
[null,null,null,null,null,null,null,null,null,null,null,null,null,null,null,null,null,null,"Winchester Bay"]
[null,null,null,null,null,null,null,null,null,null,null,null,null,null,null,null,null,null,"Winston"]
[null,null,null,null,null,null,null,null,null,null,null,null,null,null,null,null,null,null,"Woodburn"]
[null,null,null,null,null,null,null,null,null,null,null,null,null,null,null,null,null,null,"Wood Village"]
[null,null,null,null,null,null,null,null,null,null,null,null,null,null,null,null,null,null,"Yachats"]
[null,null,null,null,null,null,null,null,null,null,null,null,null,null,null,null,null,null,"Yamhill"]
[null,null,null,null,null,null,null,null,null,null,null,null,null,null,null,null,null,null,"Yoncalla"]